Cogmind - Beta 9.6 @@@ ROGUE MODE // 2020.05.31 @ 19:43:22 Player: Vectis Result: Self-destructed Performance ------------- Evolutions (3) 1500 Regions Visited (8) 1600 Robots Destroyed (150) 750 Value Destroyed (4534) 4534 Prototype IDs (24) 480 Alien Tech Used (0) 0 Bonus (682) 682 TOTAL SCORE: 9546 Bonus ------- High Alert Combat Kills 281 Follower Combat Kills 219 Aligned with FarCom 300 Friendly Fire -118 Cogmind --------- Core Integrity 227/700 Matter 300/300 Energy 100/100 System Corruption 4% Temperature Cool (0) Movement Flying (37) Location -7/Factory Parts ------- > --- POWER (1) -------- (None) > --- PROPULSION (4) --- Xenon Bombardment Thruster Xenon Bombardment Thruster > --- UTILITY (6) ------ Medium Storage Unit Improved Melee Analysis Suite Improved Melee Analysis Suite Force Booster System Shield > --- WEAPON (2) ------- Improved Datajack Chainsword > --- INVENTORY (8) ---- Improved Deuterium Engine Advanced Weight Redist. System Improved Melee Analysis Suite Improved Trap Extractor Powered Hammer Scythe Scythe Spear Peak State ------------ > --- POWER ------------ Heavy Deuterium Engine > --- PROPULSION ------- Flying Fortress v7 > --- UTILITY ---------- Medium Storage Unit High-capacity Storage Unit Improved Melee Analysis Suite Improved Melee Analysis Suite Microactuators Improved Light Armor Plating > --- WEAPON ----------- Chainsword Chainsword > --- INVENTORY -------- Improved Ion Engine Heavy Deuterium Engine Xenon Bombardment Thruster Xenon Bombardment Thruster Xenon Bombardment Thruster Xenon Bombardment Thruster Large Storage Unit Advanced Weight Redist. System Structural Scanner Hardened Medium Armor Plating Improved Trap Extractor Improved Datajack Powered Hammer Scythe Scythe Axe [Rating: 67] Favorites ----------- Power Heavy Deuterium Engine Engine Heavy Deuterium Engine Power Core Light Nuclear Core Propulsion Light Treads Treads Light Treads Leg Aluminum Leg Wheel Compact Wheel Flight Unit Flying Fortress v7 Utility Large Storage Unit Device Microactuators Storage Large Storage Unit Processor Improved Melee Analysis Suite Hackware System Shield Protection Hardened Light Armor Plating Weapon Chainsword Energy Gun Beam Rifle Energy Cannon Light EM Pulse Cannon Ballistic Gun Shotgun Launcher Rocket Launcher Impact Weapon Powered Hammer Slashing Weapon Chainsword Piercing Weapon Spear Special Melee Weapon Improved Datajack Build | -11 -10 -10 -9 -9 -9 -8 -8 -7 ------- Run | Scr Mat Min Mat Min Exi Min Mat Fac Slots Evolved 6 | . . . 2 . . . 2 2 Power . | . . . . . . . . . Propulsion 2 | . . . . . . . . 2 Utility 4 | . . . 2 . . . 2 . Weapon . | . . . . . . . . . Parts Attached 134 | 7 6 2 10 12 . 15 39 43 Power 9 | 1 . 1 1 . . . 4 2 Engine 7 | 1 . 1 1 . . . 2 2 Core 2 | . . . . . . . 2 . Reactor . | . . . . . . . . . Propulsion 36 | 2 3 . 2 6 . 5 9 9 Treads 7 | . 2 . 2 . . . 3 . Leg 5 | 2 1 . . 2 . . . . Wheel 15 | . . . . 4 . 5 6 . Hover . | . . . . . . . . . Flight 9 | . . . . . . . . 9 Utility 37 | 2 . . 5 1 . 1 10 18 Device 9 | . . . 1 . . 1 1 6 Storage 10 | 2 . . 4 . . . 3 1 Processor 4 | . . . . . . . 1 3 Hackware 3 | . . . . . . . . 3 Protection 11 | . . . . 1 . . 5 5 Artifact . | . . . . . . . . . Weapon 52 | 2 3 1 2 5 . 9 16 14 Energy Gun 9 | 2 2 1 . 3 . . 1 . Energy Cannon 1 | . . . . . . . 1 . Ballistic Gun 17 | . 1 . 2 1 . 5 8 . Ballistic Cannon . | . . . . . . . . . Launcher 4 | . . . . . . 3 1 . Special Weapon . | . . . . . . . . . Impact Weapon 6 | . . . . . . . 2 4 Slashing Weapon 9 | . . . . 1 . 1 3 4 Piercing Weapon 2 | . . . . . . . . 2 Special Melee Weapon 4 | . . . . . . . . 4 Unidentified Prototypes 1 | . . . . . . . . 1 Parts Lost 32 | . 2 1 1 3 . 2 14 9 Power 6 | . . . . . . . 4 2 Propulsion 11 | . . . 1 1 . . 6 3 Utility 6 | . . . . . . . 3 3 Weapon 9 | . 2 1 . 2 . 2 1 1 Highest Loss Streak 6 | . 1 1 1 3 . 1 6 4 Average Slot Usage (%) 88 | . 99 99 93 98 99 98 95 75 Engine 8 | . 14 14 11 11 11 11 6 7 Treads 4 | . 11 28 21 6 . . 3 . Wheel 6 | . . . . 14 22 22 14 . Flight 3 | . . . . . . . . 7 Device 7 | . . . 5 11 10 9 9 7 Storage 21 | . 28 28 33 27 22 22 26 13 Processor 6 | . . . . . . . 3 13 Hackware 1 | . . . . . . . . 2 Protection 6 | . . . . 5 11 11 12 5 Energy Gun 3 | . 14 13 1 8 11 5 . . Ballistic Gun 8 | . 12 14 19 13 11 13 15 . Impact Weapon 1 | . . . . . . . 1 3 Slashing Weapon 3 | . . . . . . 1 1 6 Piercing Weapon 1 | . . . . . . . . 3 Naked Turns . | . . . . . . . . . Heaviest Build 104 | 15 18 20 60 54 54 54 104 70 Greatest Support 72 | 20 40 40 40 40 32 32 40 72 Greatest Overweight (x) 9 | . . . 1 5 1 2 9 . Average Overweight (x) . | . . . . 1 1 1 3 . Largest Inventory Capacity 26 | 8 8 8 24 20 16 16 26 26 Average Capacity 17 | 5 8 8 18 17 16 16 25 15 Most Carried 26 | 5 8 8 16 18 16 16 26 24 Average Carried 15 | 3 6 7 13 16 15 15 23 15 Final Capacity 26 | 8 8 8 20 16 16 16 26 8 Final Carried 24 | 5 7 8 16 16 16 16 24 8 Class Distribution -------------------- 39% | Mutant 18% | Scavenger-Mutant 11% | Hauler-Skirmisher 10% | Commander-Mutant 7% | Scavenger-Skirmisher 5% | Scavenger-Assassin Dominant Class ---------------- Mutant | -10/Materials Mutant | -10/Mines Scavenger-Mutant | -9/Materials Scavenger-Mutant | -9/Mines Scavenger-Mutant | -9/Exiles Scavenger-Skirmisher | -8/Mines Hauler-Skirmisher | -8/Materials Mutant | -7/Factory Resources | -11 -10 -10 -9 -9 -9 -8 -8 -7 ----------- Run | Scr Mat Min Mat Min Exi Min Mat Fac Matter Collected 2917 | 270 148 240 167 159 38 288 1039 568 Remotely . | . . . . . . . . . Salvage Created 5409 | 65 401 250 314 353 . 294 1188 2544 Parts 328 | 6 26 15 26 20 . 31 75 129 Haulers Intercepted 3 | . . . 1 . . . 1 1 Recyclers Shooed 5 | . . . . 2 . . 1 2 Parts Field Recycled . | . . . . . . . . . Retrieved Matter . | . . . . . . . . . Parts Self-Destructed . | . . . . . . . . . Prevented . | . . . . . . . . . Kills | -11 -10 -10 -9 -9 -9 -8 -8 -7 ------- Run | Scr Mat Min Mat Min Exi Min Mat Fac Combat Hostiles Destroyed 105 | . 9 4 8 3 . 12 28 41 Melee 37 | . . . . . . . . 37 Guns 53 | . 9 4 8 3 . 5 24 . AOE 11 | . . . . . . 7 4 . Classes Destroyed 13 | 2 5 . 3 2 . . . 1 Worker 11 | . . . . 1 . 1 2 7 Builder 6 | . 2 . . . . . 3 1 Tunneler 4 | 1 . 1 . . . 2 . . Hauler 3 | . . . 1 . . . 1 1 Recycler 8 | 1 . . . 3 . . 1 3 Operator 5 | . 2 . . . . . 1 2 Watcher 7 | . 2 . 1 . . . 1 3 Swarmer 26 | . 3 . 4 . . 6 4 9 Grunt 50 | . 6 4 2 2 . 5 16 15 Brawler 2 | . . . 1 . . . 1 . Duelist 3 | . . . . 1 . 1 . 1 Sentry 16 | . . . 1 . . . 7 8 Programmer 8 | . . . . . . . . 8 Thug 1 | . . 1 . . . . . . Best Kill Streak 10 | 2 5 2 4 3 . 4 10 6 Combat Bots Only 8 | . 5 2 4 2 . 3 8 6 Max Kills in Single Turn 3 | 1 2 1 1 1 . 3 2 1 Gunslinging 1 | . . . . . . . 1 . Exploded 3 | . . . . . . 3 2 . Melee 1 | . . . . . . . . 1 Uniques/NPCs Destroyed . | . . . . . . . . . Combat | -11 -10 -10 -9 -9 -9 -8 -8 -7 -------- Run | Scr Mat Min Mat Min Exi Min Mat Fac Damage Taken 6483 | . 493 298 317 383 . 393 2257 2342 Core 1190 | . 117 27 59 21 . 110 383 473 Absorbed by Shields . | . . . . . . . . . Core Remaining (%) 56 | 100 . 42 . . . 52 30 . Volleys Fired 232 | 3 40 22 34 22 . 23 88 . Largest 2 | 2 2 2 2 2 . 2 2 . Hottest 95 | 80 85 95 95 85 . 89 56 . Shots Fired 437 | 6 80 41 62 41 . 43 164 . Gun 426 | 6 80 41 62 41 . 37 159 . Cannon . | . . . . . . . . . Launcher 11 | . . . . . . 6 5 . Special . | . . . . . . . . . Kinetic 311 | . 34 22 45 25 . 26 159 . Thermal 115 | 6 46 19 17 16 . 11 . . Explosive 11 | . . . . . . 6 5 . Electromagnetic . | . . . . . . . . . Robot Hit Streak 18 | 1 10 9 9 12 . 6 18 . Robot Miss Streak 5 | 1 5 3 2 2 . 5 5 . Penetration Max . | . . . . . . . . . Secondary Targets 8 | . 1 2 3 . . . 2 . Max Gunslinging Chain 1 | . 1 1 1 . . . 1 . Shots Hit Robots 497 | 3 53 30 41 33 . 21 150 166 Core Hits 236 | 3 22 12 17 12 . 24 85 61 Critical Hits 3 | . . . . . . . . 3 Critical Kills 2 | . . . . . . . . 2 Critical Parts Destroyed 1 | . . . . . . . . 1 Melee Attacks 285 | . . . . 1 . 3 27 254 Impact 119 | . . . . . . . 22 97 Slashing 90 | . . . . 1 . 3 5 81 Piercing 72 | . . . . . . . . 72 Sneak Attacks 24 | . . . . . . . 2 22 Combat Hostiles 8 | . . . . . . . . 8 Follow-up Attacks 27 | . . . . . . . . 27 Damage Inflicted 12332 | 45 768 419 433 385 . 767 2945 6570 Guns 4247 | 45 768 419 433 358 . 232 1992 . Cannons . | . . . . . . . . . Explosions 1199 | . . . . . . 535 664 . Melee 6877 | . . . . 27 . . 280 6570 Ramming 9 | . . . . . . . 9 . Kinetic 3072 | . 309 197 225 173 . 176 1992 . Thermal 1175 | 45 459 222 208 185 . 56 . . Explosive 1199 | . . . . . . 535 664 . Electromagnetic . | . . . . . . . . . Impact 2337 | . . . . . . . 280 2057 Slashing 2887 | . . . . 27 . . . 2860 Piercing 1653 | . . . . . . . . 1653 Highest Corruption 4 | . 2 2 3 3 3 3 . 4 Average Corruption 3 | . 2 2 3 3 3 3 . 3 Corruption Purged . | . . . . . . . . . Effects 114 | . 4 6 10 11 7 9 . 67 Message Errors 28 | . 2 1 2 4 2 1 . 16 Matter Fused 30 | . . . 4 1 2 1 . 22 Heat Flow Errors 14 | . 1 1 1 1 1 1 . 8 Energy Discharges 18 | . . 1 2 1 1 2 . 11 Data Loss (minor) 11 | . . 1 . 1 1 1 . 7 Targeting Errors 12 | . 1 2 1 2 . 3 . 3 Weapon Failures 1 | . . . . 1 . . . . Overload Shots . | . . . . . . . . . Overflow Damage 586 | . . . . . . . 17 569 Projectiles . | . . . . . . . . . Explosions 3 | . . . . . . . 3 . Melee 583 | . . . . . . . 14 569 Knockbacks 7 | . . . . . . . 1 6 Impact 7 | . . . . . . . 1 6 Kinetic . | . . . . . . . . . Secondary . | . . . . . . . . . Self-Inflicted Damage 161 | . . . . . . 84 77 . Shots 7 | . . . . . . 3 4 . Rammed 1 | . . . . . . . 1 . Targets Rammed 1 | . . . . . . . 1 . Kicked . | . . . . . . . . . Crushed . | . . . . . . . . . Highest Temperature 331 | 56 224 260 331 206 240 191 75 271 Average Temperature 76 | 26 105 90 96 53 121 65 19 97 Received Heat Transfer 2184 | . 264 174 30 96 . 99 945 576 Effects 4 | . . 1 3 . . . . . Energy Bleed 2 | . . 1 1 . . . . . Short Circuit 1 | . . . 1 . . . . . Damage (minor) 1 | . . . 1 . . . . . Siege Activations . | . . . . . . . . . Robots Corrupted . | . . . . . . . . . Combat Hostiles . | . . . . . . . . . Parts Fried 8 | . . . . . . . 2 6 Impact Corruptions 13 | . . . . . . . 1 12 Robots Melted . | . . . . . . . . . Combat Hostiles . | . . . . . . . . . Parts Melted 4 | . 1 1 . 1 . . . 1 Heat Transferred 2746 | 100 1127 555 370 446 . 148 . . Parts Sabotaged . | . . . . . . . . . Parts Stolen . | . . . . . . . . . Parts Stripped . | . . . . . . . . . Power Chain Reactions . | . . . . . . . . . Missiles Intercepted . | . . . . . . . . . Alert | -11 -10 -10 -9 -9 -9 -8 -8 -7 ------- Run | Scr Mat Min Mat Min Exi Min Mat Fac Peak Influence 984 | 10 300 174 245 70 . 266 383 984 Average Influence 231 | 3 191 69 119 24 . 116 189 370 Maximum Alert Level 3 | . 1 . 1 . . 1 1 3 Low Security (%) 55 | 100 36 100 94 100 . 92 51 30 Level 1 26 | . 63 . 5 . . 7 48 27 Level 2 14 | . . . . . . . . 34 Level 3 3 | . . . . . . . . 7 Level 4 . | . . . . . . . . . Level 5 . | . . . . . . . . . High Security . | . . . . . . . . . Max Security . | . . . . . . . . . Squads Dispatched 30 | . 2 1 2 . . 1 6 18 Investigation 9 | . . . 2 . . . 3 4 Extermination 8 | . . . . . . . . 8 Reinforcement 9 | . 2 . . . . 1 3 3 Assault 3 | . . 1 . . . . . 2 Garrison 1 | . . . . . . . . 1 Intercept . | . . . . . . . . . Construction Impeded 3 | . . . . . . 1 1 1 Haulers Reinforced 1 | . . . . . . . . 1 Stealth | -11 -10 -10 -9 -9 -9 -8 -8 -7 --------- Run | Scr Mat Min Mat Min Exi Min Mat Fac Distress Signals 7 | . 1 . . . . 1 5 . Communications Jammed . | . . . . . . . . . Distress Signals . | . . . . . . . . . Times Spotted 194 | . 17 10 11 3 . 11 54 88 Peak Tracking Total 12 | . 3 4 4 3 . 3 7 12 Tactical Retreats 16 | . 1 . 1 . . 1 1 12 Traps | -11 -10 -10 -9 -9 -9 -8 -8 -7 ------- Run | Scr Mat Min Mat Min Exi Min Mat Fac Traps Triggered 4 | . 1 . . . . . 1 2 Indirectly . | . . . . . . . . . Trap Hack Attempts 51 | . . . . . . . . 51 Triggered 1 | . . . . . . . . 1 Disarmed 1 | . . . . . . . . 1 Reprogrammed 2 | . . . . . . . . 2 Reused . | . . . . . . . . . Traps Extracted . | . . . . . . . . . Installed . | . . . . . . . . . Triggered . | . . . . . . . . . Machines | -11 -10 -10 -9 -9 -9 -8 -8 -7 ---------- Run | Scr Mat Min Mat Min Exi Min Mat Fac Machines Disabled 5 | . . . . . . 1 2 2 Max in Single Turn 1 | . . . . . . 1 1 . Machines Sabotaged . | . . . . . . . . . Garrisons Compromised . | . . . . . . . . . Overloaded Fab Kills . | . . . . . . . . . Fab Network Shutdowns . | . . . . . . . . . Hacking | -11 -10 -10 -9 -9 -9 -8 -8 -7 --------- Run | Scr Mat Min Mat Min Exi Min Mat Fac Machines Accessed 41 | . 1 . 2 . 2 . 8 28 Terminals 27 | . 1 . 1 . . . 6 19 Fabricators 3 | . . . . . . . . 3 Repair Stations 3 | . . . . . . . 1 2 Recycling Units 1 | . . . . . . . . 1 Scanalyzers 3 | . . . 1 . . . 1 1 Garrison Access 2 | . . . . . . . . 2 Total Hacks 108 | . 3 . 6 . 5 . 30 64 Successful 67 | . 1 . 5 . 5 . 14 42 Failed 40 | . 2 . 1 . . . 15 22 Catastrophic 6 | . 1 . . . . . 2 3 Database Lockouts 1 | . . . . . . . 1 . Manual 74 | . 1 . 2 . 1 . 15 55 Terminals 74 | . 3 . 3 . . . 22 46 Fabricators 7 | . . . . . . . . 7 Repair Stations 9 | . . . . . . . 5 4 Recycling Units 2 | . . . . . . . . 2 Scanalyzers 8 | . . . 3 . . . 3 2 Garrison Access 3 | . . . . . . . . 3 Terminal Hacks 17 | . 1 . 1 . 5 . 5 5 Record 4 | . . . . . 4 . . . Part Schematic 1 | . . . . . . . 1 . Robot Schematic 1 | . . . . . . . . 1 Robot Analysis 1 | . 1 . . . . . . . Emergency Access Points 1 | . . . . . . . 1 . Terminal Index 1 | . . . . . . . . 1 Fabricator Index 1 | . . . . . . . . 1 Unreport Threat 4 | . . . 1 . . . 1 2 Locate Traps 2 | . . . . . . . 2 . EX-Prototype ID Bank 1 | . . . . . 1 . . . Fabricator Hacks 4 | . . . . . . . . 4 Load Schematic 2 | . . . . . . . . 2 Build 2 | . . . . . . . . 2 Repair Station Hacks 8 | . . . . . . . 4 4 Scan Component 4 | . . . . . . . 2 2 Repair 4 | . . . . . . . 2 2 Recycling Unit Hacks . | . . . . . . . . . Scanalyzer 4 | . . . 2 . . . . 2 Insert Component 2 | . . . 1 . . . . 1 Analyze 2 | . . . 1 . . . . 1 Garrison Access Hacks . | . . . . . . . . . Unauthorized Hacks 34 | . . . 2 . . . 5 27 Terminals 26 | . . . 1 . . . 5 20 Track 1 | . . . . . . . . 1 Assimilate 6 | . . . . . . . . 6 Botnet 17 | . . . 1 . . . 4 12 Operators 2 | . . . . . . . 1 1 Fabricators 3 | . . . . . . . . 3 Report 1 | . . . . . . . . 1 Siphon 2 | . . . . . . . . 2 Repair Stations . | . . . . . . . . . Recycling Units 1 | . . . . . . . . 1 Mask 1 | . . . . . . . . 1 Scanalyzers 1 | . . . 1 . . . . . Extract 1 | . . . 1 . . . . . Garrison Access 3 | . . . . . . . . 3 Reprogram 3 | . . . . . . . . 3 Data Cores Recovered 1 | . . . . . . . . 1 Used . | . . . . . . . . . Hacking Detections 31 | . 1 . 2 . . . 8 20 Full Trace Events 5 | . . . 1 . . . 2 2 Feedback Events . | . . . . . . . . . Feedback Blocked . | . . . . . . . . . Robot Schematics Acquired 1 | . . . . . . . . 1 Robots Built 2 | . . . . . . . . 2 Matter 504 | . . . . . . . . 504 Time 268 | . . . . . . . . 268 Total Robot Build Rating 8 | . . . . . . . . 8 Part Schematics Acquired 4 | . . . 2 . . . 1 1 Parts Built . | . . . . . . . . . Matter . | . . . . . . . . . Time . | . . . . . . . . . Total Part Build Rating . | . . . . . . . . . Parts Repaired 4 | . . . . . . . 2 2 Time 133 | . . . . . . . 70 63 Parts Recycled . | . . . . . . . . . Recycled Matter . | . . . . . . . . . Retrieved Matter . | . . . . . . . . . Retrieved Components . | . . . . . . . . . Parts Scanalyzed 2 | . . . 1 . . . . 1 Part Schematics Acquired 2 | . . . 1 . . . . 1 Parts Damaged . | . . . . . . . . . Bothacking | -11 -10 -10 -9 -9 -9 -8 -8 -7 ------------ Run | Scr Mat Min Mat Min Exi Min Mat Fac Used RIF Installer . | . . . . . . . . . Robots Hacked . | . . . . . . . . . Non-combat . | . . . . . . . . . Combat . | . . . . . . . . . Robot Hacks Applied . | . . . . . . . . . Relay Couplers Released . | . . . . . . . . . Robots Rewired 2 | . . . . . . . . 2 Allies Hacked . | . . . . . . . . . Hacks Repelled . | . . . . . . . . . Allies | -11 -10 -10 -9 -9 -9 -8 -8 -7 -------- Run | Scr Mat Min Mat Min Exi Min Mat Fac Total Allies 18 | . . 1 . 2 . . . 15 Largest Group 7 | . . 1 . 2 2 . . 7 Highest-Rated Group 170 | . . 31 . 46 46 . . 170 Highest-Rated Ally 38 | . . 31 . 31 31 . . 38 Total Orders 12 | . . . . . . . . 12 STAY 7 | . . . . . . . . 7 FOLLOW 5 | . . . . . . . . 5 Ally Attacks 42 | . . 10 . . . . . 32 Total Damage 1040 | . . 189 . . . . . 851 Kills 10 | . . 4 . . . . . 6 Allies Corrupted 1 | . . . . . . . . 1 Allies Melted . | . . . . . . . . . Intel | -11 -10 -10 -9 -9 -9 -8 -8 -7 ------- Run | Scr Mat Min Mat Min Exi Min Mat Fac Robot Analysis Total 1 | . 1 . . . . . . . Derelict Logs Recovered 1 | . . . . 1 . . . . Drone Launches . | . . . . . . . . . Drone Recoveries . | . . . . . . . . . Exploration | -11 -10 -10 -9 -9 -9 -8 -8 -7 ------------- Run | Scr Mat Min Mat Min Exi Min Mat Fac Turns Passed 8842 | 85 439 517 583 739 331 665 1883 3600 Spaces Moved 8253 | 56 181 273 249 484 290 492 908 5320 Core 8 | 8 . . . . . . . . Treads 854 | . 93 273 249 93 . . 146 . Legs 143 | 48 88 . . 7 . . . . Wheels 1928 | . . . . 384 290 492 762 . Hover . | . . . . . . . . . Flight 5320 | . . . . . . . . 5320 Fastest Speed 31 | 50 120 160 160 110 110 100 110 31 Average Speed 79 | 110 140 160 176 125 110 105 136 49 Slowest Speed 270 | 120 160 160 180 270 110 110 240 50 Overloaded Moves . | . . . . . . . . . Propulsion Burnouts . | . . . . . . . . . Robots Hopped 26 | . . . . . . . . 26 Cave-ins Triggered . | . . . . . . . . . Exploration Rate (%) 54 | 4 43 69 20 84 70 56 65 82 Regions Visited 8 Branch Regions 4 Pre-discovered Areas 1 | . . . . . 1 . . . Known Exits Taken . | . . . . . . . . . Unknown Exits Taken 8 | 1 1 1 1 1 1 1 1 . Scrap Searched 2 | . . . . 1 . 1 . . Spaces Dug 82 | . . . . . . 27 6 49 Terrain Destroyed 145 | . . . . . . 60 36 49 Melee 58 | . . . . . . 3 6 49 Projectile . | . . . . . . . . . AOE 87 | . . . . . . 57 30 . Actions | -11 -10 -10 -9 -9 -9 -8 -8 -7 --------- Run | Scr Mat Min Mat Min Exi Min Mat Fac Total 9865 | 70 289 314 337 583 305 587 1344 6036 Wait 797 | . 49 10 30 34 6 48 248 372 Move 8201 | 55 180 272 248 483 289 491 907 5276 Hop 18 | . . . . . . . . 18 Pick Up 82 | 5 8 4 8 12 3 2 22 18 Fast Attach 49 | 7 . 1 9 8 . 1 10 13 Attach 36 | . 4 . . 1 . 2 12 17 Detach 2 | . . . . . . . . 2 Swap 49 | . 2 1 1 3 . 12 17 13 Drop 97 | . 6 4 7 19 7 5 12 37 Fire 232 | 3 40 22 34 22 . 23 88 . Melee 245 | . . . . 1 . 3 27 214 Ram 1 | . . . . . . . 1 . Kick . | . . . . . . . . . Crush . | . . . . . . . . . Escape Stasis . | . . . . . . . . . Rewire 5 | . . . . . . . . 5 Trap 51 | . . . . . . . . 51 Miscellaneous . | . . . . . . . . . Route ------- -11/Scrapyard -10/Materials (discovered 2 exits: *Mat / [*Min]) -10/Mines -9/Materials -9/Mines (discovered 3 exits: *Mat x2 / *Exi) -9/Exiles (discovered 2 exits: [*Min x2]) -8/Mines -8/Materials (discovered 2 exits: *Fac / [*Sto]) -7/Factory (discovered 5 exits: [*Fac x4] / [*Low]) History --------- Turn | Location | Event 8 | -11/Scrapyard | Discovered new exit (range 14) 86 | -11/Scrapyard | Entered Materials 287 | -10/Materials | Discovered new exit (range 13) 316 | -10/Materials | Build established: Mutant 479 | -10/Materials | Discovered new exit (range 12) 525 | -10/Materials | Entered Mines 649 | -10/Mines | Received a Rocket Launcher from a helpful Derelict 705 | -10/Mines | Met a Derelict testing a Signal Generator 838 | -10/Mines | Core integrity fell below 50% 992 | -10/Mines | Discovered new exit (range 12) 1042 | -10/Mines | Entered Materials 1042 | -9/Materials | Evolved 2 slots: Utility x2 1391 | -9/Materials | Build established: Scavenger-Mutant 1542 | -9/Materials | Discovered new exit (range 16) 1625 | -9/Materials | Entered Mines 1855 | -9/Mines | Lost 3 parts (1n2w) 1939 | -9/Mines | Discovered new exit (range 15) 1967 | -9/Mines | Joined a pair of Derelicts in attacking an 0b10 outpost 2194 | -9/Mines | A weapon hastily lodged in a ceiling crevice suddenly fell to the ground 2303 | -9/Mines | Learned 2 Materials zone layouts 2305 | -9/Mines | Discovered new exit (range 7) 2349 | -9/Mines | Deemed a non-threat by the Exiles lab entrance 2349 | -9/Mines | Discovered new exit (range 5) 2364 | -9/Mines | Entered Exiles 2364 | -9/Exiles | Accompanied by 2 allies 2379 | -9/Exiles | Discovered new exit (range 15) 2392 | -9/Exiles | Met 8R-AWN 2394 | -9/Exiles | Led the pair of lost Derelicts to a safe place 2425 | -9/Exiles | Met EX-HEX 2454 | -9/Exiles | Met EX-BIN 2473 | -9/Exiles | Aligned with FarCom system 2474 | -9/Exiles | Given EX-Vault access code 2499 | -9/Exiles | Opened EX-Vault 2511 | -9/Exiles | Found Flying Fortress v7 2533 | -9/Exiles | Warned to stay clear of 0b10 Research branches 2548 | -9/Exiles | Exiles lab attacked by MAIN.C 2570 | -9/Exiles | Learned location of Zion (-7) 2684 | -9/Exiles | Discovered new exit (range 10) 2695 | -9/Exiles | Left Exiles lab with Flying Fortress v7 2695 | -9/Exiles | Entered Mines 3092 | -8/Mines | Build established: Scavenger-Skirmisher 3355 | -8/Mines | Discovered new exit (range 5) 3360 | -8/Mines | Entered Materials 3360 | -8/Materials | Evolved 2 slots: Utility x2 3837 | -8/Materials | Discovered new exit (range 16) 4044 | -8/Materials | Build established: Hauler-Skirmisher 4066 | -8/Materials | Repaired Katana 4099 | -8/Materials | Repaired Shotgun 4111 | -8/Materials | Discovered new exit (range 15) 4231 | -8/Materials | Destroyed 8 combat bots 4432 | -8/Materials | Central database locked down 4750 | -8/Materials | Lost 6 parts (2p3n1u) 4907 | -8/Materials | Core integrity fell below 50% 4960 | -8/Materials | Lost 4 parts (2n1u1w) 5241 | -8/Materials | Build established: Scavenger-Assassin 5243 | -8/Materials | Entered Factory 5243 | -7/Factory | Evolved 2 slots: Propulsion x2 5688 | -7/Factory | Build established: Mutant 5808 | -7/Factory | Discovered new exit (range 16) 5835 | -7/Factory | Repaired Maneuvering Thrusters 6063 | -7/Factory | Discovered new exit (range 8) 6433 | -7/Factory | Discovered new exit (range 14) 7384 | -7/Factory | Core integrity fell below 50% 7411 | -7/Factory | Discovered new exit (range 9) 7771 | -7/Factory | Repaired Microactuators 7797 | -7/Factory | Fabricated P-60 Hacker (x2) 8043 | -7/Factory | First assault squad dispatched 8073 | -7/Factory | Discovered new exit (range 11) 8113 | -7/Factory | Build established: Commander-Mutant 8753 | -7/Factory | Garrison activated, responded to threat 8843 | -7/Factory | Self-destructed Last Messages --------------- 08842_ Fusion Modulator explodes. 08842_ Fabricator disabled. 08842_ Proton Bomb Trap short circuited. 08842_ Door malfunctions. 08842_ A bubble of electromagnetic force engulfs the area. 08842_ Xenon Bombardment Thruster destroyed. 08842_ Imp. Ion Engine destroyed. 08842_ Xenon Bombardment Thruster destroyed. 08842_ Hacking Suite destroyed. 08842_ Technician 4b destroyed. 08842_ Hacker 4b destroyed. 08842_ Administrator 4b destroyed. 08842_ Administrator 4c reveals location of hidden door. 08842_ Proton Bomb Trap short circuited. 08842_ Administrator 4c destroyed. 08842_ T-07 Excavator destroyed. 08842_ Door malfunctions. 08842_ A bubble of electromagnetic force engulfs the area. 08842_ Door malfunctions. 08843_ ALERT: Significant disruption in Zone 6S, assault force dispatched. Map ----- +----------------------------------------------------+ | ?????#####???# #?# """ / | | ?????????????# """ #?# """ != | | ?????????????# """ #?# "" "" /%=* | | ?????????????# """ ""T"" #?# ""G"" [% | | ?????????????# """"" #?#########+##### | | ?????????????##+##############?# # | | ????????????? + #?# # | | ???????######## # #?# "" "" # | | ???????# # # #?# "" "" # | | ???????+ + + #?# """ """ # | | ???????# # # #?# """ """ # | | ???????# # # #?# """ """ # | | ???????# # # ### # | | ???????# # # ############# | | ???###+######## # / % | | ???? # # ############# | | ???? """ "# # #???????????# | | ??? """ T # #???????????# | | ?# """ "# #####/#/################## | | ?# # #???# ! | | ???###+#####+## ##### g | | ?????# !%= """" """" """" | | ?????# #####+#######|=! """" """" """" | | ?????# # """" /%% """" """" """" | | ?????# # "F " =% """" """" """" | | ?????# # a p@ """" """" """" | | ?????# # t ;!g """" """" """" | | ?????# # """ """ ;%* """" """" """" % | | ?????# # """ """ ; | | ?????# # """ """ ; """" """" """" | | ?????# # ; """" """" """" | | ?????# # """ """ ##;;; ;# """" """" """" | | ?????# #! """ """ ?#### ## """" """" """" | | ?????# # "?" """ ????# ## """" """" """" | | ?????# # ??? ?????# ## """" """" """" | | ?????# ######???##+?????# ## """" """" """" | | ?????# # ???????????# ## | | ###??# # """????????????# ## | | # ?# # """????????????# ## ###/#########+ | | # ?# # ""?????????????# ## #?# # | | # ! # # ?????????????# ## #?# # | | # # ##+####??????????# ## #?# """"""" # | | # + #??????????# ## #?# """"""" # | | #!=* #### [ #????#######+## #?# """"""" # | | #!=* ???#[% ###### # #?# """"""" # | | #!= ???## ! + # #?# # | | # ???# ######## """ # #?# [ !# | | ###????# + """ # ### ######### | | ???????# ######## """ # # ## | | ???????#####??????# "" # # """ """ ## | +----------------------------------------------------+ Best States ------------- Heat Dissipation 41 Energy Generation 18 Energy Capacity 310 Matter Stores 300 Matter Capacity 300 Sight Range 16 Robot Scan Range 13 Terrain Scan Range 16 Terrain Scan Density 10 Armor Coverage 375 Melee Speed Boost 20 Evasion (%) 66 Targeting Accuracy 5 Melee Accuracy 12 Recoil Reduction 2 Force Boost 3 Offensive Hacking 10 Defensive Hacking 10 Item Schematics ----------------- VTOL Module | -9/Materials | Scanalyzed Imp. Assault Rifle | -9/Materials | Extracted System Shield | -8/Materials | Hacked Xenon Bombardment Thruster | -7/Factory | Scanalyzed Robot Schematics ------------------ P-60 Hacker | -7/Factory | Hacked Fabricated ------------ P-60 Hacker | x2 | -7/Factory Alien Tech Used ----------------- None Achievements -------------- None Challenges ------------ None Game ------ Seed LobotomyHardlightDoomcannon Manual? 0 Play Time 01:40:20 Cumulative 61.4 hours Start 2020.05.31 @ 14:52:16 End 2020.05.31 @ 19:43:22 Sessions 3 Manual Loads 0 Difficulty Rogue Special Mode None Game No. 36 Rogue 36 Adventurer 0 Explorer 0 Win Type - Total 3 Types 2/0/0/1/0/0/0 Lore% 55 Gallery% 56 Achievement% 48 Wizard Run 0 Options --------- ASCII 1 Keyboard 0 Movement Numpad Keybinds 0 Fullscreen 1 Font 18/SmallcapsGlow Map View 76x50 Tactical HUD 1 Map Filters NONE Filters NONE Steam 1 RUN: 68cdcff4-1fda-43b2-a4e3-29acb56a2ade